Cogmind - Beta 14 @@@ ROGUE MODE // 2024.11.13 @ 21:10:28 Player: Voidriven Result: Destroyed by as-64040 with Assembled Heavy Rifle Performance ------------- Evolutions (0) 0 Regions Visited (2) 400 Robots Destroyed (12) 60 Value Destroyed (261) 261 Prototype IDs (0) 0 Alien Tech Used (0) 0 Bonus (0) 0 TOTAL SCORE: 721 Bonus ------- None Cogmind --------- Core Integrity 0/250 Matter 300/300 Energy 49/100 System Corruption 0% Temperature Warning (318) Movement Core (50) Location -10/Mines Parts ------- > --- POWER (1) -------- (None) > --- PROPULSION (2) --- (None) > --- UTILITY (2) ------ (None) > --- WEAPON (2) ------- (None) > --- INVENTORY (5) ---- Flight Unit Peak State ------------ > --- POWER ------------ Light Ion Engine > --- PROPULSION ------- Improved Hover Unit Flight Unit > --- UTILITY ---------- Structural Scanner > --- WEAPON ----------- Mining Laser Mining Laser > --- INVENTORY -------- Flight Unit Flight Unit [Rating: 7] Favorites ----------- Power Ion Engine Engine Ion Engine Propulsion Aluminum Leg Leg Aluminum Leg Hover Unit Improved Hover Unit Flight Unit Flight Unit Utility Small Storage Unit Device Structural Scanner Storage Small Storage Unit Weapon Light Cannon Ballistic Gun Assault Rifle Ballistic Cannon Light Cannon Special Weapon Mining Laser Build | -11 -10 -10 ------- Run | Yrd Mat Min Slots Evolved . | . . . Power . | . . . Propulsion . | . . . Utility . | . . . Weapon . | . . . Parts Attached 16 | 4 12 . Power 2 | 1 1 . Engine 2 | 1 1 . Core . | . . . Reactor . | . . . Propulsion 6 | 2 4 . Treads . | . . . Leg 2 | 2 . . Wheel . | . . . Hover 1 | . 1 . Flight 3 | . 3 . Utility 2 | 1 1 . Device 1 | . 1 . Storage 1 | 1 . . Processor . | . . . Hackware . | . . . Protection . | . . . Artifact . | . . . Weapon 6 | . 6 . Energy Gun . | . . . Energy Cannon . | . . . Ballistic Gun 1 | . 1 . Ballistic Cannon 2 | . 2 . Launcher . | . . . Special Weapon 3 | . 3 . Impact Weapon . | . . . Slashing Weapon . | . . . Piercing Weapon . | . . . Special Melee Weapon . | . . . Unidentified Prototypes . | . . . Parts Lost 9 | . 3 6 Power 2 | . 1 1 Propulsion 3 | . 1 2 Utility 1 | . . 1 Weapon 3 | . 1 2 Highest Loss Streak 6 | . 2 6 To Critical Strikes . | . . . Average Slot Usage (%) 73 | . 73 80 Engine 10 | . 10 14 Leg 19 | . 20 . Flight 7 | . 6 28 Device 3 | . 2 14 Storage 10 | . 11 . Ballistic Gun 4 | . 5 . Ballistic Cannon 9 | . 9 . Special Weapon 7 | . 6 23 Peak Build Rating 7 | 4 7 6 Average Rating 5 | 3 5 5 On Entrance 3 | . 4 6 Naked Turns . | . . . Heaviest Build 16 | 10 16 6 Greatest Support 20 | 20 20 8 Greatest Overweight (x) 1 | . 1 . Average Overweight (x) . | . . . Largest Inventory Capacity 8 | 8 8 5 Average Capacity 7 | 7 7 5 Most Carried 4 | 3 4 1 Average Carried 1 | 1 1 1 Final Capacity 8 | 8 5 5 Final Carried 2 | 2 1 1 Class Distribution -------------------- 100% | Mutant Dominant Class ---------------- Mutant | -10/Materials Mutant | -10/Mines Resources | -11 -10 -10 ----------- Run | Yrd Mat Min Matter Collected 512 | 240 272 . Remotely . | . . . Salvage Created 325 | . 304 21 Parts 17 | . 15 2 Haulers Intercepted . | . . . Recyclers Shooed . | . . . Parts Field Recycled . | . . . Retrieved Matter . | . . . Parts Self-Destructed . | . . . Prevented . | . . . Kills | -11 -10 -10 ------- Run | Yrd Mat Min Combat Hostiles Destroyed 8 | . 5 3 Cannons 8 | . 5 3 Classes Destroyed 7 | . 6 1 Worker 1 | . 1 . Recycler 2 | . 2 . Operator 1 | . 1 . Watcher 1 | . 1 . Swarmer 2 | . 2 . Grunt 5 | . 3 2 Assembled 1 | . . 1 Best Kill Streak 6 | . 6 3 Combat Bots Only 3 | . 3 3 Max Kills in Single Turn 1 | . 1 1 Gunslinging . | . . . Exploded . | . . . Melee . | . . . Uniques/NPCs Destroyed . | . . . Combat | -11 -10 -10 -------- Run | Yrd Mat Min Hostile Shots Fired 96 | . 64 32 Missed 28 | . 15 13 Damage Taken 846 | . 559 287 Core 266 | . 136 130 Absorbed by Shields . | . . . Core Remaining (%) 100 | 100 . . Volleys Fired 52 | . 47 5 Largest 2 | . 2 2 Hottest 200 | . 200 200 Shots Fired 72 | . 64 8 Gun 9 | . 9 . Cannon 35 | . 35 . Launcher . | . . . Special 28 | . 20 8 Kinetic 44 | . 44 . Thermal 28 | . 20 8 Explosive . | . . . Electromagnetic . | . . . Robot Hit Streak 4 | . 4 2 Robot Miss Streak 3 | . 3 1 Penetration Max . | . . . Secondary Targets . | . . . Shots Hit Robots 33 | . 29 4 Core Hits 22 | . 18 4 Critical Kills . | . . . Critical Parts Destroyed . | . . . Critical Strikes . | . . . Melee Attacks . | . . . Impact . | . . . Slashing . | . . . Piercing . | . . . Sneak Attacks . | . . . Combat Hostiles . | . . . Follow-up Attacks . | . . . Damage Inflicted 465 | . 369 96 Guns 59 | . 59 . Cannons 278 | . 278 . Explosions . | . . . Melee . | . . . Ramming . | . . . Kinetic 337 | . 337 . Thermal 128 | . 32 96 Explosive . | . . . Electromagnetic . | . . . Impact . | . . . Slashing . | . . . Piercing . | . . . Highest Corruption . | . . . Average Corruption . | . . . Corruption Purged . | . . . Corruption Blocked . | . . . Overload Shots . | . . . Overflow Damage . | . . . Projectiles . | . . . Explosions . | . . . Melee . | . . . Knockbacks 3 | . 3 . Impact . | . . . Kinetic 3 | . 3 . Secondary . | . . . Self-Inflicted Damage . | . . . Shots . | . . . Rammed . | . . . Targets Rammed . | . . . Kicked . | . . . Crushed . | . . . Highest Temperature 278 | . 70 278 Average Temperature 86 | . 31 174 Received Heat Transfer 460 | . 288 172 Siege Activations . | . . . Robots Corrupted . | . . . Combat Hostiles . | . . . Parts Fried . | . . . Impact Corruptions . | . . . Robots Melted . | . . . Combat Hostiles . | . . . Parts Melted . | . . . Heat Transferred 475 | . 275 200 Parts Sabotaged . | . . . Parts Stolen . | . . . Parts Stripped . | . . . Power Chain Reactions . | . . . Alert | -11 -10 -10 ------- Run | Yrd Mat Min Peak Influence 149 | . 149 80 Initial 28 | . . 28 Average 56 | . 63 62 Maximum Alert Level . | . . . Low Security (%) 100 | 100 100 100 Level 1 . | . . . Level 2 . | . . . Level 3 . | . . . Level 4 . | . . . Level 5 . | . . . High Security . | . . . Max Security . | . . . Squads Dispatched 2 | . 2 . Investigation 2 | . 2 . Extermination . | . . . Reinforcement . | . . . Assault . | . . . Garrison . | . . . Intercept . | . . . Searches Triggered . | . . . Construction Impeded . | . . . Haulers Reinforced . | . . . Active Scanning Responses . | . . . Cargo Convoy Interrupts . | . . . Stealth | -11 -10 -10 --------- Run | Yrd Mat Min Distress Signals . | . . . Communications Jammed . | . . . Distress Signals . | . . . Times Spotted 28 | . 11 17 Peak Tracking Total 18 | . 4 18 Tactical Retreats . | . . . Traps | -11 -10 -10 ------- Run | Yrd Mat Min Traps Triggered 1 | . 1 . Indirectly . | . . . Trap Hack Attempts . | . . . Triggered . | . . . Disarmed . | . . . Reprogrammed . | . . . Reused . | . . . Traps Extracted . | . . . Installed . | . . . Triggered . | . . . Machines | -11 -10 -10 ---------- Run | Yrd Mat Min Machines Disabled . | . . . Max in Single Turn . | . . . Machines Repaired . | . . . Machines Dismantled . | . . . Machines Sabotaged . | . . . Overloaded Fab Kills . | . . . Hacking | -11 -10 -10 --------- Run | Yrd Mat Min Machines Accessed 3 | . 3 . Terminals 2 | . 2 . Fabricators . | . . . Repair Stations . | . . . Recycling Units 1 | . 1 . Scanalyzers . | . . . Garrison Access . | . . . Total Hacks 7 | . 7 . Successful 4 | . 4 . Failed 3 | . 3 . Catastrophic 1 | . 1 . Database Lockouts . | . . . Manual 4 | . 4 . Terminals 4 | . 4 . Fabricators . | . . . Repair Stations . | . . . Recycling Units 3 | . 3 . Scanalyzers . | . . . Garrison Access . | . . . Terminal Hacks 2 | . 2 . Record 1 | . 1 . Robot Analysis 1 | . 1 . Fabricator Hacks . | . . . Repair Station Hacks . | . . . Recycling Unit Hacks 2 | . 2 . Recycle Component 2 | . 2 . Scanalyzer . | . . . Garrison Access Hacks . | . . . Unauthorized Hacks . | . . . Terminals . | . . . Fabricators . | . . . Repair Stations . | . . . Recycling Units . | . . . Scanalyzers . | . . . Garrison Access . | . . . Data Cores Recovered 1 | . 1 . Used . | . . . Hacking Detections 2 | . 2 . Full Trace Events 2 | . 2 . Feedback Events . | . . . Feedback Blocked . | . . . Robot Schematics Acquired . | . . . Robots Built . | . . . Authchips . | . . . Time . | . . . Total Robot Build Rating . | . . . Part Schematics Acquired . | . . . Parts Built . | . . . Authchips . | . . . Time . | . . . Total Part Build Rating . | . . . Parts Repaired . | . . . Time . | . . . Parts Recycled 2 | . 2 . Recycled Matter . | . . . Retrieved Matter . | . . . Retrieved Components . | . . . Parts Scanalyzed . | . . . Part Schematics Acquired . | . . . Parts Damaged . | . . . Bothacking | -11 -10 -10 ------------ Run | Yrd Mat Min Used RIF Installer . | . . . Robots Hacked . | . . . Non-combat . | . . . Combat . | . . . Robot Hacks Applied . | . . . Relay Couplers Released . | . . . Fabnet Peak Effective % . | . . . Robots Rewired . | . . . Allies Hacked . | . . . Hacks Repelled . | . . . Allies | -11 -10 -10 -------- Run | Yrd Mat Min Total Allies . | . . . Largest Group . | . . . Highest-Rated Group . | . . . Highest-Rated Ally . | . . . Total Orders . | . . . Ally Attacks . | . . . Total Damage . | . . . Kills . | . . . Allies Corrupted . | . . . Allies Melted . | . . . Intel | -11 -10 -10 ------- Run | Yrd Mat Min Robot Analysis Total 1 | . 1 . Derelict Logs Recovered . | . . . Drone Launches . | . . . Drone Recoveries . | . . . Exploration | -11 -10 -10 ------------- Run | Yrd Mat Min Turns Passed 662 | 70 559 33 Spaces Moved 584 | 57 509 18 Core 11 | 11 . . Treads . | . . . Legs 303 | 46 257 . Wheels . | . . . Hover . | . . . Flight 270 | . 252 18 Fastest Speed 37 | 50 37 37 Average Speed 81 | 106 79 37 Slowest Speed 190 | 120 190 37 Overloaded Moves . | . . . Propulsion Burnouts . | . . . Robots Hopped 1 | . 1 . Cave-ins Triggered . | . . . Exploration Rate (%) 25 | 4 63 8 Regions Visited 2 Branch Regions 1 Pre-discovered Areas . | . . . Known Exits Taken . | . . . Unknown Exits Taken 2 | 1 1 . Scrap Searched . | . . . Spaces Dug 4 | . 4 . Terrain Destroyed 7 | . 4 3 Melee . | . . . Projectile 7 | . 4 3 AOE . | . . . Terrain Rammed . | . . . Walls Destroyed . | . . . Machines Disabled . | . . . Actions | -11 -10 -10 --------- Run | Yrd Mat Min Total 675 | 66 586 23 Wait . | . . . Move 580 | 56 506 18 Hop 1 | . 1 . Pick Up 19 | 6 13 . Fast Attach . | . . . Attach 12 | 4 8 . Detach . | . . . Swap 4 | . 4 . Drop 7 | . 7 . Fire 52 | . 47 5 Melee . | . . . Ram . | . . . Kick . | . . . Crush . | . . . Escape Stasis . | . . . Rewire . | . . . Trap . | . . . Miscellaneous . | . . . Route ------- -11/Scrapyard -10/Materials (discovered 3 exits: [*Mat x2] / [*Min]) -10/Mines History --------- Turn | Location | Event 3 | -11/Scrapyard | Discovered new exit (range 15) 71 | -11/Scrapyard | Entered Materials 306 | -10/Materials | Build established: Mutant 470 | -10/Materials | Core integrity fell below 50% 534 | -10/Materials | Discovered new exit (range 4) 535 | -10/Materials | Discovered new exit (range 16) 592 | -10/Materials | Discovered new exit (range 3) 630 | -10/Materials | Entered Mines 631 | -10/Mines | Assembled infested the area 663 | -10/Mines | Core integrity fell below 20% 663 | -10/Mines | Destroyed by as-64040 with Assembled Heavy Rifle Last Messages --------------- changed with the [Infestation], for which the current response is to dispatch garrisoned Demolishers until a more permanent solution can be put in place. ALERT: Suspicious activity at Terminal M005. Dispatching Investigation squad. LOCATION=UNKNOWN GOAL=ESCAPE Something is scanning the area. G-34 Mercenary destroyed. ALERT: Infestation in the mines, dispatching Demolisher response squad. Critical hit (Burn: +37). G-47 Trooper destroyed. Mining Laser destroyed. as-99075 destroyed. Flight Unit destroyed. Structural Scanner destroyed. Lgt. Ion Engine destroyed. Mining Laser destroyed. Map ----- +----------------------------------------------------+ | ?????????????????????????????????????????????????? | | ?????????????????????????????????????????????????? | | ?????????????????????????????????????????????????? | | ?????????????????????????????????????????????????? | | ?????????????????????????????????????????????????? | | ?????????????????????????????????????????????????? | | ?????????????????????????????????????????????????? | | ?????????????????????????????????????????????????? | | ?????????????????????????????????????????????????? | | ?????????????????????????????????????????????????? | | ?????????????????????????????????????????????????? | | ?????????????????????????????????????????????????? | | ?????????????????????????????????????????????????? | | ?????????????????????????????????????????????????? | | ?????????????????????????????????????????????????? | | ?????????????????????????????????????????????????? | | ?????????????????????????????????????????????????? | | ?????????????????????????????????????????????????? | | ?????????????????????????????????????????????????? | | ????????????????????######???????????????????????? | | ??????????#### ######################????????????? | | ?????????##### ####### ############????????????? | | ?????????## a a ##????????????? | | ?????????# aaaa ##????????????? | | ?????????? a aa aaa### ### ##????????????? | | ???????????? # ##### a@ ### ### ##????????????? | | ????????????## ###### aa ### ### ###???????????? | | ???????????????????#### #### ### ####??????????? | | ????????????????????########## ### #####????????? | | ?????????????????????######### ####????????? | | ????????????????????????????#####% =% ##????????? | | ????????????????????????????##### * ##????????? | | ???????????????????????????????### ##????????? | | ???????????????????????????????#### ##????????? | | ????????????????????????????????#### ###????????? | | ?????????????????????????????????########????????? | | ???????????????????????????????????#####?????????? | | ?????????????????????????????????????????????????? | | ?????????????????????????????????????????????????? | | | | | | | | | | | | | | | | | | | | | | | +----------------------------------------------------+ Best States ------------- Heat Dissipation 25 Energy Generation 10 Energy Capacity 250 Matter Stores 300 Matter Capacity 300 Sight Range 16 Terrain Scan Density 10 Evasion (%) 62 Item Schematics ----------------- None Robot Schematics ------------------ None Fabricated ------------ Nothing Alien Tech Used ----------------- None Achievements -------------- None Challenges ------------ None Game ------ Seed SmallAssembledCalibrator Manual? 0 Play Time 00:20:00 Cumulative 3.5 hours Start 2024.11.13 @ 20:49:25 End 2024.11.13 @ 21:10:28 Sessions 1 Manual Loads 0 Difficulty Rogue Special Mode None Game No. 9 Rogue 9 Adventurer 0 Explorer 0 Win Type - Total 0 Types 0/0/0/0/0/0/0/0/0 Lore% 1 Gallery% 8 Achievement% 8 Wizard Run 0 Options --------- Layout 1 ASCII 1 Keyboard 0 Movement Mouse Keybinds 0 Fullscreen 1 Font 20/SmallcapsGlow Map View 50x35 Zoom Use 0% Tactical HUD 0 Map Filters NONE Filters NONE Steam 1 RUN: 8e8d4444-e58a-425a-b65c-32026375bc6f